{"text_format":"1","workbook":"xlsx","n_sheets":1,"sheets":["лист1"],"not_rendered":{"charts":0,"images":0,"macros":0,"external_links":0,"defined_names":0,"comments":0,"pivot_tables":0},"unopened":[],"bounds":{"document_bytes":16777216,"sheet_cells":100000,"rows_first":2000,"rows_last":500,"rows_between":2000,"halvings":0,"cell_chars":16384,"cell_head_chars":4096},"cells_cut":0,"cells_raw":0,"read":"whole","date_system":"1900"}

{"sheet":"лист1","index":0,"n_rows":58,"n_cols":8,"rows_kept":58,"cut":false,"hidden":false,"merged":[[59,0,59,6],[38,0,39,0],[38,1,39,1],[38,2,39,2],[38,3,39,3],[38,4,39,4],[38,5,39,5],[38,6,39,6],[4,7,5,7],[51,7,52,7],[54,7,55,7],[58,0,58,4],[0,7,1,7],[2,0,2,7],[4,0,5,0],[4,1,5,1],[4,2,5,2],[4,3,4,5],[4,6,5,6]]}
[]
[]
["Свод изменений к проекту решения   Совета народных депутатов \"О внесении изменений в решение \"О бюджете муниципального образования   Красносельское    на 2018 год\""]
[null,null,null,null,null,null,null,"тыс. рублей"]
["Показатели","Бюджетные назначения на 1 января 2018 г. (Решение СНД №46 от 20.12.2017г.)","Бюджетные назначения на  1 января 2018г.   (Решение СНД №46 от 20.12.2017г.)","Изменения, предусмотренные проектом решения",null,null,"Бюджетные назначения с учетом проекта решения","Примечание"]
[null,null,null,"Увеличение  (+)","Уменьшение  (-)","Всего"]
[1,2,3,4,5,6,7,8]
["ДОХОДЫ БЮДЖЕТА",{"$f":"B24","v":30344.9},{"$f":"C9+C23","v":30344.9},{"$f":"D9+D23","v":254.8},{"$f":"E9+E23","v":0},{"$f":"F9+F23","v":254.8},{"$f":"G9+G23","v":30599.7}]
["НАЛОГОВЫЕ И НЕНАЛОГОВЫЕ ДОХОДЫ",{"$f":"B10+B12+B13+B14+B16+B17","v":18603},{"$f":"C10+C12+C13+C14+C16+C17","v":18603},{"$f":"D10+D12+D13+D14+D16+D17","v":103},{"$f":"E10+E11+E12+E13+E14+E15+E16+E17","v":0},{"$f":"F10+F12+F13+F14+F16+F17","v":103},{"$f":"G10+G12+G13+G14+G16+G17","v":18706}]
["Налог на доходы физических лиц",1474,1474,79,0,{"$f":"D10-E10","v":79},1553,"Доведение до уровня 5,8% кассового исполнения за 2017год"]
["Единый налог на вмененный доход"]
["Единый сельскохозяйственный налог",95,95,null,null,{"$f":"D12-E12","v":0},95]
["Налог на имущество физических лиц",758,758,null,null,{"$f":"D13","v":0},758]
["Земельный налог",14696,14696,null,null,{"$f":"D14-E14","v":0},14696]
["Налог на добычу полезных ископаемых",null,null,null,null,null,{"$f":"C15+F15","v":0}]
["Прочие налоговые доходы",10,10,7,null,{"$f":"D16","v":7},17,"Доведение до уровня кассового исполнения за 2017год"]
["Неналоговые доходы, из них",1570,1570,17,null,17,{"$f":"G18+G19+G20+G21","v":1587}]
["доходы от использования имущества, находящегося в государственной и муниципальной собственности",1555,1555,null,null,0,1555]
["штрафы, санкции, возмещение ущерба",15,15,17,null,17,32,"Доведение до уровня кассового исполнения за 2017год"]
["доходы от продажи материальных и нематериальных активов",null,null,null,null,0]
["прочие неналоговые доходы",null,null,null,null,0]
["Средства от возврата остатков субсидий, субвенций и иных межбюджетных трансфертов"]
["БЕЗВОЗМЕЗДНЫЕ ПОСТУПЛЕНИЯ",11741.9,11741.9,151.80000000000001,0,{"$f":"D23-E23","v":151.80000000000001},11893.7,"151,8 тыс.руб.- Уведомление Финансового управления администрации муниципального образования Юрьев-Польский район №11 от 28.02.2018г."]
["ИТОГО ДОХОДОВ",{"$f":"B23+B9","v":30344.9},30344.9,254.8,0,254.8,30599.7]
[]
["РАСХОДЫ БЮДЖЕТА",{"$f":"B27+B30+B41","v":30344.899999999998},{"$f":"C27+C30+C41","v":30344.899999999998},{"$f":"D27+D30+D41","v":263.3},{"$f":"E27+E30+E41","v":8.5},{"$f":"D26-E26","v":254.8},{"$f":"G27+G30+G41","v":30599.7}]
["Раздел I. Социально-значимые расходы",{"$f":"B28+B29","v":8110},{"$f":"C28+C29","v":8110},{"$f":"D28+D29","v":0},{"$f":"E28","v":0},{"$f":"D27-E27","v":0},{"$f":"G28+G29","v":8110}]
["Заработная плата и начисления на нее (ВР 111,119,121,129)",8060,8060,null,null,{"$f":"D28-E28","v":0},8060]
["Социальное обеспечение (ВР 300)",50,50,null,null,{"$f":"D29-E29","v":0},50]
["Раздел II. Первоочередные расходы",{"$f":"B31+B32+B33+B36+B37+B39","v":22034.899999999998},{"$f":"C31+C32+C33+C36+C37+C39","v":22034.899999999998},{"$f":"D31+D32+D33+D36+D37+D39","v":263.3},{"$f":"E31+E32+E33+E36+E37+E39","v":8.5},{"$f":"D30-E30","v":254.8},{"$f":"G31+G32+G33+G36+G37+G39","v":22289.7}]
["Расходы на обслуживание муниципального долга (ВР 730)"]
["Межбюджетные трансферты общего характера бюджетам бюджетной системы Российской Федерации (ВР 500)",10318.200000000001,10318.200000000001,null,null,{"$f":"D32-E32","v":0},10318.200000000001]
["Расходы на первоочередные нужды, из них:                   "]
["      прочие выплаты по заработной плате (ВР 112,122)"]
["  иные выплаты персоналу, за исключением фонда оплаты труда (ВР 142)"]
["Иные закупки товаров, работ и услуг для обеспечения муниципальных нужд (ВР 240)",11472.9,11472.9,254.8,8.5,{"$f":"D36-E36","v":246.3},11719.2,"8,5 тыс.руб.-уточнение вида расхода,                                                        151,8 тыс.руб.- направление средств на вознаграждение старост,                                                           103,0тыс.руб.- направление средст на проведение кадастровых работ, изготовление межевых планов"]
["Иные бюджетные ассигнования (ВР 810,851,852,853)",70,70,8.5,null,{"$f":"D37-E37","v":8.5},78.5,"8,5 тыс.руб.- уточнение вида расхода"]
["Расходы на прочие нужды, из них:"]
["Предоставление субсидий бюджетным, автономным учреждениям и иным некоммерческим организациям (ВР 600)",173.8,173.8,null,null,null,173.8]
[]
["Раздел III. Расходы",{"$f":"B43","v":200},{"$f":"C43","v":200},null,null,null,{"$f":"G43","v":200}]
["Увеличение стоимости основных средств  ВР 400)                                                                                                                                                  "]
["Другие расходы ВР 113,123,831,870)",200,200,null,null,null,200]
["ИТОГО РАСХОДОВ",{"$f":"B26","v":30344.899999999998},{"$f":"C26","v":30344.899999999998},null,null,null,{"$f":"G26","v":30599.7}]
["Справочно: на 01.01.2018г. Штатная численность составила 5 ед., фактическая - 5ед."]
["Расходы на выплату заработной платы с начислениями работникам органов местного самоуправления",2516.8000000000002,2516.8000000000002,null,null,null,2516.8000000000002]
[]
["Профицит (+)/дефицит (-)",{"$f":"B8-B26","v":0},{"$f":"C8-C26","v":0},null,null,null,{"$f":"G8-G26","v":0}]
["ИСТОЧНИКИ ФИНАНСИРОВАНИЯ ДЕФИЦИТА БЮДЖЕТА"]
["Итого источников"]
["Изменение остатков средств бюджетов"]
["Разница между полученными и погашенными кредитами  от других бюджетов"]
[" - получение бюджетных кредитов"]
[" - погашение бюджетных кредитов"]
["Разница меду полученными и погашенными кредитами от кредитных организаций"]
[" - получение кредитов от кредитных организаций"]
[" - погашение кредитов от кредитных организаций"]
["Иные источники"]